[Event "Betsys MČR v online bleskovém šachu 2021"]
[Site "Chess.com"]
[Date "2021.04.17"]
[Round "6"]
[White "fadamos"]
[Black "MilosJi"]
[Result "1-0"]
[WhiteElo "2285"]
[BlackElo "2572"]
[TimeControl "180+1"]
[EndTime "9:58:24 PDT"]
[Termination "Uživatel fadamos zvítězil na čas"]

1. e4 {[%clk 0:02:59.8]} 1... d5 {[%clk 0:02:59]} 2. exd5 {[%clk 0:02:59.8]}
2... Qxd5 {[%clk 0:02:59.6]} 3. Nc3 {[%clk 0:02:59.9]} 3... Qd6 {[%clk
0:02:55.3]} 4. d4 {[%clk 0:02:54.2]} 4... Nf6 {[%clk 0:02:55.4]} 5. Bc4 {[%clk
0:02:53.1]} 5... a6 {[%clk 0:02:54.9]} 6. a4 {[%clk 0:02:51]} 6... Nc6 {[%clk
0:02:53.1]} 7. Nge2 {[%clk 0:02:50.8]} 7... Bf5 {[%clk 0:02:51]} 8. O-O {[%clk
0:02:44]} 8... Nb4 {[%clk 0:02:47.3]} 9. Bf4 {[%clk 0:02:34.7]} 9... Qd7 {[%clk
0:02:42.7]} 10. Bb3 {[%clk 0:02:32.6]} 10... e6 {[%clk 0:02:42.6]} 11. Re1
{[%clk 0:02:26.9]} 11... Be7 {[%clk 0:02:39.5]} 12. Ng3 {[%clk 0:02:16.7]} 12...
Bg6 {[%clk 0:02:39.3]} 13. h4 {[%clk 0:02:06.8]} 13... h6 {[%clk 0:02:39.3]} 14.
h5 {[%clk 0:02:06.4]} 14... Bh7 {[%clk 0:02:39.5]} 15. Qe2 {[%clk 0:02:03.6]}
15... c6 {[%clk 0:02:32.5]} 16. Rad1 {[%clk 0:02:01.8]} 16... O-O {[%clk
0:02:32.2]} 17. Be5 {[%clk 0:02:00]} 17... Rfe8 {[%clk 0:02:27.3]} 18. Nce4
{[%clk 0:01:54.4]} 18... Nbd5 {[%clk 0:02:18.5]} 19. Nc5 {[%clk 0:01:52.2]}
19... Qc8 {[%clk 0:02:09.2]} 20. a5 {[%clk 0:01:50.3]} 20... Bf8 {[%clk
0:02:04]} 21. Nge4 {[%clk 0:01:45.4]} 21... Nxe4 {[%clk 0:01:19.5]} 22. Nxe4
{[%clk 0:01:45]} 22... f6 {[%clk 0:00:50.5]} 23. Bg3 {[%clk 0:01:30.7]} 23...
Kh8 {[%clk 0:00:50.6]} 24. Nd6 {[%clk 0:01:29.5]} 24... Bxd6 {[%clk 0:00:50.1]}
25. Bxd6 {[%clk 0:01:30.2]} 25... Qd7 {[%clk 0:00:49.2]} 26. Bg3 {[%clk
0:01:29.6]} 26... Bg8 {[%clk 0:00:49.2]} 27. c4 {[%clk 0:01:22.7]} 27... Nc7
{[%clk 0:00:47.9]} 28. Bc2 {[%clk 0:01:21.5]} 28... Rad8 {[%clk 0:00:45.2]} 29.
Qe4 {[%clk 0:01:11.4]} 29... Re7 {[%clk 0:00:44.5]} 30. b4 {[%clk 0:01:06.7]}
30... Ne8 {[%clk 0:00:43.8]} 31. d5 {[%clk 0:00:55.8]} 31... cxd5 {[%clk
0:00:40.4]} 32. cxd5 {[%clk 0:00:56]} 32... e5 {[%clk 0:00:39]} 33. f4 {[%clk
0:00:47.3]} 33... Nd6 {[%clk 0:00:38.3]} 34. Qe2 {[%clk 0:00:47.2]} 34... e4
{[%clk 0:00:37.2]} 35. Bf2 {[%clk 0:00:42.6]} 35... Rde8 {[%clk 0:00:35.8]} 36.
Bc5 {[%clk 0:00:42.3]} 36... f5 {[%clk 0:00:34.8]} 37. Bb3 {[%clk 0:00:37]}
37... Bf7 {[%clk 0:00:33.2]} 38. Rc1 {[%clk 0:00:33.1]} 38... Rd8 {[%clk
0:00:33.1]} 39. Bb6 {[%clk 0:00:32.7]} 39... Rc8 {[%clk 0:00:31.8]} 40. Rxc8+
{[%clk 0:00:25.9]} 40... Qxc8 {[%clk 0:00:31]} 41. Bc5 {[%clk 0:00:26.3]} 41...
Rd7 {[%clk 0:00:31.1]} 42. Rc1 {[%clk 0:00:25.4]} 42... Qd8 {[%clk 0:00:30.7]}
43. Qd1 {[%clk 0:00:21.4]} 43... Kh7 {[%clk 0:00:29.2]} 44. Ba4 {[%clk
0:00:21.7]} 44... Re7 {[%clk 0:00:27.4]} 45. Qd4 {[%clk 0:00:20.5]} 45... Bxh5
{[%clk 0:00:23.5]} 46. Bb6 {[%clk 0:00:20.8]} 46... Qf8 {[%clk 0:00:20.7]} 47.
Qc5 {[%clk 0:00:19.8]} 47... Rf7 {[%clk 0:00:19.8]} 48. Bc7 {[%clk 0:00:17.8]}
48... Nb5 {[%clk 0:00:19.3]} 49. Be5 {[%clk 0:00:16.6]} 49... Qxc5+ {[%clk
0:00:17.9]} 50. bxc5 {[%clk 0:00:17.5]} 50... Rd7 {[%clk 0:00:17.9]} 51. Bxb5
{[%clk 0:00:17.5]} 51... axb5 {[%clk 0:00:17.5]} 52. c6 {[%clk 0:00:18.1]} 52...
bxc6 {[%clk 0:00:17]} 53. dxc6 {[%clk 0:00:19]} 53... Rd8 {[%clk 0:00:16.4]} 54.
c7 {[%clk 0:00:19.5]} 54... Rc8 {[%clk 0:00:16.8]} 55. a6 {[%clk 0:00:18.2]}
55... Be8 {[%clk 0:00:16.3]} 56. a7 {[%clk 0:00:18.1]} 56... Bd7 {[%clk
0:00:16.6]} 57. Rd1 {[%clk 0:00:18.2]} 57... Bc6 {[%clk 0:00:16.4]} 58. Rd8
{[%clk 0:00:17.8]} 1-0

[Event "Betsys MČR v online bleskovém šachu 2021"]
[Site "Chess.com"]
[Date "2021.04.17"]
[Round "6"]
[White "tucnak64"]
[Black "KajaOl"]
[Result "1/2-1/2"]
[WhiteElo "2114"]
[BlackElo "2325"]
[TimeControl "180+1"]
[EndTime "9:58:25 PDT"]
[Termination "Remíza dohodou"]

1. Nf3 {[%clk 0:03:00.2]} 1... d5 {[%clk 0:02:59.5]} 2. g3 {[%clk 0:02:58.8]}
2... Nf6 {[%clk 0:02:59.2]} 3. Bg2 {[%clk 0:02:58.9]} 3... Bg4 {[%clk 0:02:59]}
4. O-O {[%clk 0:02:58.4]} 4... Nbd7 {[%clk 0:02:54.6]} 5. c4 {[%clk 0:02:57.8]}
5... c6 {[%clk 0:02:54.3]} 6. b3 {[%clk 0:02:56.6]} 6... e5 {[%clk 0:02:49.2]}
7. d3 {[%clk 0:02:53.3]} 7... Bd6 {[%clk 0:02:48.1]} 8. Bb2 {[%clk 0:02:52.6]}
8... O-O {[%clk 0:02:47.5]} 9. Nbd2 {[%clk 0:02:52.3]} 9... Re8 {[%clk
0:02:47.1]} 10. h3 {[%clk 0:02:43.5]} 10... Bh5 {[%clk 0:02:39.9]} 11. e4 {[%clk
0:02:40.7]} 11... dxe4 {[%clk 0:02:22]} 12. dxe4 {[%clk 0:02:39.9]} 12... Nc5
{[%clk 0:02:17.8]} 13. Qe2 {[%clk 0:02:37.8]} 13... Ne6 {[%clk 0:02:08.4]} 14.
Rfe1 {[%clk 0:02:17.2]} 14... Qb6 {[%clk 0:01:53.7]} 15. Rad1 {[%clk 0:02:05.5]}
15... Rad8 {[%clk 0:01:49.1]} 16. Nf1 {[%clk 0:01:59.2]} 16... Bb4 {[%clk
0:01:00.9]} 17. Rxd8 {[%clk 0:01:25.5]} 17... Rxd8 {[%clk 0:00:58.6]} 18. Rc1
{[%clk 0:01:18.4]} 18... Nd4 {[%clk 0:00:39.9]} 19. Bxd4 {[%clk 0:01:13.4]}
19... Rxd4 {[%clk 0:00:25.5]} 20. g4 {[%clk 0:00:24.9]} 20... Rxe4 {[%clk
0:00:24.9]} 21. Ne3 {[%clk 0:00:22.4]} 21... Bg6 {[%clk 0:00:18.6]} 22. Nh4
{[%clk 0:00:21.3]} 22... Rd4 {[%clk 0:00:16.8]} 23. Nef5 {[%clk 0:00:21.1]}
23... Rd2 {[%clk 0:00:12.9]} 24. Qxe5 {[%clk 0:00:14.7]} 24... Qxf2+ {[%clk
0:00:10.7]} 25. Kh1 {[%clk 0:00:14.8]} 25... h6 {[%clk 0:00:07.2]} 26. Qb8+
{[%clk 0:00:13.4]} 26... Bf8 {[%clk 0:00:06.5]} 27. Rf1 {[%clk 0:00:13.3]} 27...
Qe2 {[%clk 0:00:04.7]} 28. Qxb7 {[%clk 0:00:10.3]} 28... Bxf5 {[%clk 0:00:02.8]}
29. Rxf5 {[%clk 0:00:09.4]} 29... Qe1+ {[%clk 0:00:02.7]} 30. Kh2 {[%clk
0:00:08.1]} 30... Qxh4 {[%clk 0:00:02.5]} 31. Qxc6 {[%clk 0:00:07.6]} 31... Qe1
{[%clk 0:00:01.7]} 32. Qf3 {[%clk 0:00:07.1]} 32... Qe2 {[%clk 0:00:01.7]} 33.
Qxe2 {[%clk 0:00:06.2]} 33... Rxe2 {[%clk 0:00:02.6]} 34. Ra5 {[%clk 0:00:06.4]}
34... Re7 {[%clk 0:00:02.4]} 35. c5 {[%clk 0:00:06]} 35... g6 {[%clk 0:00:02.3]}
36. b4 {[%clk 0:00:05.7]} 36... Rc7 {[%clk 0:00:02.6]} 37. Ra6 {[%clk
0:00:05.2]} 37... Be7 {[%clk 0:00:02.7]} 38. Rc6 {[%clk 0:00:05]} 38... Rxc6
{[%clk 0:00:02.6]} 39. Bxc6 {[%clk 0:00:05.8]} 39... Bd8 {[%clk 0:00:03]} 40.
Bf3 {[%clk 0:00:05.7]} 40... Bc7+ {[%clk 0:00:03.2]} 41. Kg2 {[%clk 0:00:05.5]}
41... Kf8 {[%clk 0:00:03.4]} 42. Kf2 {[%clk 0:00:05.7]} 42... Ke7 {[%clk
0:00:03.8]} 43. Ke3 {[%clk 0:00:06.1]} 43... Ke6 {[%clk 0:00:04.2]} 44. Kd3
{[%clk 0:00:05.7]} 44... Nd5 {[%clk 0:00:03.9]} 45. Kc4 {[%clk 0:00:04.9]} 45...
Ne3+ {[%clk 0:00:04]} 46. Kd3 {[%clk 0:00:05.1]} 46... Nd5 {[%clk 0:00:03.7]}
47. Kc4 {[%clk 0:00:05.3]} 47... Nf4 {[%clk 0:00:04]} 48. h4 {[%clk 0:00:04.8]}
48... Ke5 {[%clk 0:00:03.9]} 49. h5 {[%clk 0:00:04.9]} 49... Ne6 {[%clk
0:00:03.3]} 50. hxg6 {[%clk 0:00:04.4]} 50... fxg6 {[%clk 0:00:02.8]} 1/2-1/2

[Event "Betsys MČR v online bleskovém šachu 2021"]
[Site "Chess.com"]
[Date "2021.04.17"]
[Round "6"]
[White "MichalTrhal"]
[Black "Naty139"]
[Result "0-1"]
[WhiteElo "1924"]
[BlackElo "2241"]
[TimeControl "180+1"]
[EndTime "9:58:28 PDT"]
[Termination "Uživatel Naty139 zvítězil po vzdání soupeře"]

1. d4 {[%clk 0:02:59.8]} 1... d5 {[%clk 0:02:58.9]} 2. Bg5 {[%clk 0:02:58.2]}
2... h6 {[%clk 0:02:53.6]} 3. Bh4 {[%clk 0:02:57.9]} 3... Bf5 {[%clk 0:02:52.3]}
4. e3 {[%clk 0:02:56.2]} 4... a6 {[%clk 0:02:38.7]} 5. Bd3 {[%clk 0:02:56]} 5...
Bxd3 {[%clk 0:02:37.9]} 6. Qxd3 {[%clk 0:02:56]} 6... c6 {[%clk 0:02:23.3]} 7.
Nf3 {[%clk 0:02:53.5]} 7... Qa5+ {[%clk 0:02:22.7]} 8. c3 {[%clk 0:02:52.2]}
8... Nd7 {[%clk 0:02:22.6]} 9. O-O {[%clk 0:02:50.1]} 9... g5 {[%clk 0:02:20.1]}
10. Bg3 {[%clk 0:02:49.4]} 10... Ngf6 {[%clk 0:02:16]} 11. Nbd2 {[%clk
0:02:45.5]} 11... Bg7 {[%clk 0:02:13.4]} 12. Ne5 {[%clk 0:02:42.5]} 12... Qb5
{[%clk 0:02:11.3]} 13. c4 {[%clk 0:02:23.4]} 13... Qb6 {[%clk 0:01:59.2]} 14. c5
{[%clk 0:02:20]} 14... Qd8 {[%clk 0:01:57.8]} 15. f4 {[%clk 0:02:16.1]} 15... g4
{[%clk 0:01:47.2]} 16. Bh4 {[%clk 0:01:54.4]} 16... h5 {[%clk 0:01:45.4]} 17. e4
{[%clk 0:01:50.7]} 17... dxe4 {[%clk 0:01:39.7]} 18. Nxe4 {[%clk 0:01:50.1]}
18... Nxe4 {[%clk 0:01:33.4]} 19. Qxe4 {[%clk 0:01:49.6]} 19... Nf6 {[%clk
0:01:25.5]} 20. Bxf6 {[%clk 0:01:48.8]} 20... Bxf6 {[%clk 0:01:25]} 21. Rad1
{[%clk 0:01:38.4]} 21... Qd5 {[%clk 0:01:14.7]} 22. Qxd5 {[%clk 0:01:32.1]}
22... cxd5 {[%clk 0:01:15.6]} 23. b4 {[%clk 0:01:29.2]} 23... Rc8 {[%clk
0:01:13.9]} 24. Rc1 {[%clk 0:01:23.3]} 24... Kf8 {[%clk 0:01:10.6]} 25. a4
{[%clk 0:01:22.3]} 25... Kg7 {[%clk 0:01:10.1]} 26. Kf2 {[%clk 0:01:21.3]} 26...
Bh4+ {[%clk 0:01:04.6]} 27. g3 {[%clk 0:01:21.2]} 27... Bf6 {[%clk 0:01:05.1]}
28. Ke3 {[%clk 0:01:19]} 28... Bxe5 {[%clk 0:01:03.5]} 29. fxe5 {[%clk
0:01:17.3]} 29... h4 {[%clk 0:01:03.5]} 30. Rf4 {[%clk 0:01:07.6]} 30... hxg3
{[%clk 0:01:02]} 31. Rxg4+ {[%clk 0:01:06.2]} 31... Kf8 {[%clk 0:01:02.4]} 32.
hxg3 {[%clk 0:01:06]} 32... Rc6 {[%clk 0:01:00.5]} 33. Rf1 {[%clk 0:01:03.7]}
33... Rh2 {[%clk 0:00:57.2]} 34. Rgf4 {[%clk 0:01:02.9]} 34... Rh7 {[%clk
0:00:54.3]} 35. b5 {[%clk 0:00:56.8]} 35... axb5 {[%clk 0:00:50.1]} 36. axb5
{[%clk 0:00:55.9]} 36... Rg6 {[%clk 0:00:50.6]} 37. R1f3 {[%clk 0:00:55.2]}
37... Ke8 {[%clk 0:00:49.6]} 38. Kd3 {[%clk 0:00:41.9]} 38... Rgg7 {[%clk
0:00:49.6]} 39. Kc3 {[%clk 0:00:27.2]} 39... Rh3 {[%clk 0:00:48]} 40. Kb4 {[%clk
0:00:26]} 40... Rhxg3 {[%clk 0:00:38]} 41. Rxg3 {[%clk 0:00:26]} 41... Rxg3
{[%clk 0:00:38.9]} 42. Ka5 {[%clk 0:00:25]} 42... Rg6 {[%clk 0:00:36.2]} 43. Rh4
{[%clk 0:00:18.6]} 43... Kd7 {[%clk 0:00:35.2]} 44. b6 {[%clk 0:00:18.4]} 44...
Rg1 {[%clk 0:00:30.3]} 45. Kb4 {[%clk 0:00:16]} 45... Rb1+ {[%clk 0:00:29.9]}
46. Kc3 {[%clk 0:00:15.9]} 46... Rc1+ {[%clk 0:00:29.9]} 47. Kd3 {[%clk
0:00:15.9]} 47... Rf1 {[%clk 0:00:27.1]} 48. Rh6 {[%clk 0:00:15.3]} 48... e6
{[%clk 0:00:24.1]} 49. Kc3 {[%clk 0:00:14.5]} 49... Kc6 {[%clk 0:00:23.7]} 50.
Rh7 {[%clk 0:00:13.8]} 50... Rf3+ {[%clk 0:00:23.1]} 51. Kd2 {[%clk 0:00:13.6]}
51... Kb5 {[%clk 0:00:21.2]} 52. Rh8 {[%clk 0:00:13.8]} 52... Rf4 {[%clk
0:00:20.6]} 53. Rb8 {[%clk 0:00:13.5]} 53... Rxd4+ {[%clk 0:00:19.3]} 54. Ke3
{[%clk 0:00:13.8]} 54... Re4+ {[%clk 0:00:19.6]} 55. Kf3 {[%clk 0:00:12.2]}
55... Kc6 {[%clk 0:00:20.5]} 56. Rc8+ {[%clk 0:00:11.3]} 56... Kb5 {[%clk
0:00:20.6]} 57. Rc7 {[%clk 0:00:10.6]} 57... Rxe5 {[%clk 0:00:20.5]} 58. c6
{[%clk 0:00:06.9]} 58... Kxb6 {[%clk 0:00:19.6]} 59. Rxb7+ {[%clk 0:00:05.4]}
59... Kxc6 {[%clk 0:00:19]} 60. Rxf7 {[%clk 0:00:05.6]} 60... Rf5+ {[%clk
0:00:19.9]} 0-1

[Event "Betsys MČR v online bleskovém šachu 2021"]
[Site "Chess.com"]
[Date "2021.04.17"]
[Round "6"]
[White "Patrik_Kohm"]
[Black "marosino"]
[Result "1-0"]
[WhiteElo "1385"]
[BlackElo "1568"]
[TimeControl "180+1"]
[EndTime "9:58:28 PDT"]
[Termination "Uživatel Patrik_Kohm zvítězil matem"]

1. e4 {[%clk 0:03:00.9]} 1... d5 {[%clk 0:02:59.3]} 2. exd5 {[%clk 0:03:00.1]}
2... Nf6 {[%clk 0:02:58.5]} 3. Nc3 {[%clk 0:02:56]} 3... Nxd5 {[%clk 0:02:57.8]}
4. Nxd5 {[%clk 0:02:56.1]} 4... Qxd5 {[%clk 0:02:57.5]} 5. Nf3 {[%clk
0:02:56.3]} 5... e5 {[%clk 0:02:57.1]} 6. b3 {[%clk 0:02:52.4]} 6... Bg4 {[%clk
0:02:53.4]} 7. Be2 {[%clk 0:02:47.1]} 7... Nc6 {[%clk 0:02:45.1]} 8. Bb2 {[%clk
0:02:45.7]} 8... O-O-O {[%clk 0:02:41.5]} 9. O-O {[%clk 0:02:43.7]} 9... Nd4
{[%clk 0:02:35.9]} 10. Nxd4 {[%clk 0:02:40.7]} 10... Bxe2 {[%clk 0:02:34.4]} 11.
Nxe2 {[%clk 0:02:40.5]} 11... Bd6 {[%clk 0:02:32.2]} 12. d3 {[%clk 0:02:37.4]}
12... f5 {[%clk 0:02:31.7]} 13. c4 {[%clk 0:02:34.8]} 13... Qc6 {[%clk
0:02:29.6]} 14. Ng3 {[%clk 0:02:32.2]} 14... f4 {[%clk 0:02:29.3]} 15. Ne4
{[%clk 0:02:29.8]} 15... g5 {[%clk 0:02:27]} 16. Qg4+ {[%clk 0:02:19.7]} 16...
Kb8 {[%clk 0:02:26]} 17. Nxd6 {[%clk 0:02:18.5]} 17... Qxd6 {[%clk 0:02:25.2]}
18. Qxg5 {[%clk 0:02:17.8]} 18... Rhg8 {[%clk 0:02:23.5]} 19. Qxe5 {[%clk
0:02:14]} 19... Qxd3 {[%clk 0:02:21.7]} 20. Qxf4 {[%clk 0:02:09.1]} 20... Rdf8
{[%clk 0:02:19.3]} 21. Qe3 {[%clk 0:02:08]} 21... Qg6 {[%clk 0:02:14.7]} 22. g3
{[%clk 0:02:05.4]} 22... Qg4 {[%clk 0:02:11]} 23. f4 {[%clk 0:01:58.8]} 23... h5
{[%clk 0:02:03.7]} 24. Qf3 {[%clk 0:01:57.7]} 24... Qg6 {[%clk 0:01:59.2]} 25.
Rfe1 {[%clk 0:01:52.6]} 25... h4 {[%clk 0:01:58.7]} 26. Kg2 {[%clk 0:01:52.2]}
26... hxg3 {[%clk 0:01:54.9]} 27. hxg3 {[%clk 0:01:49.5]} 27... Qc2+ {[%clk
0:01:50.7]} 28. Re2 {[%clk 0:01:46.1]} 28... Qf5 {[%clk 0:01:45.2]} 29. Rae1
{[%clk 0:01:41.9]} 29... a6 {[%clk 0:01:41.4]} 30. Re5 {[%clk 0:01:38.8]} 30...
Qc2+ {[%clk 0:01:39.6]} 31. R1e2 {[%clk 0:01:36.3]} 31... Qg6 {[%clk 0:01:36]}
32. Rg5 {[%clk 0:01:34.2]} 32... Qh6 {[%clk 0:01:28.1]} 33. Rxg8 {[%clk
0:01:24.5]} 33... Rxg8 {[%clk 0:01:27.3]} 34. Re5 {[%clk 0:01:21.6]} 34... Qd6
{[%clk 0:01:24.3]} 35. Qd5 {[%clk 0:01:19.9]} 35... Qg6 {[%clk 0:01:22.4]} 36.
Qf3 {[%clk 0:01:12.8]} 36... Qc2+ {[%clk 0:01:20.9]} 37. Qe2 {[%clk 0:01:12.8]}
37... Qg6 {[%clk 0:01:20.4]} 38. Rg5 {[%clk 0:01:11.9]} 38... Qf7 {[%clk
0:01:16.2]} 39. Rxg8+ {[%clk 0:01:03.9]} 39... Qxg8 {[%clk 0:01:16.1]} 40. Qe5
{[%clk 0:01:03.5]} 40... Qd8 {[%clk 0:01:11.2]} 41. Kf3 {[%clk 0:01:02.8]} 41...
Qd3+ {[%clk 0:01:09.8]} 42. Qe3 {[%clk 0:00:56.6]} 42... Qd1+ {[%clk 0:01:09.5]}
43. Qe2 {[%clk 0:00:56]} 43... Qh1+ {[%clk 0:01:07.1]} 44. Kg4 {[%clk
0:00:55.7]} 44... Qh6 {[%clk 0:00:56.5]} 45. Qe8+ {[%clk 0:00:47.6]} 45... Ka7
{[%clk 0:00:55.7]} 46. Qh5 {[%clk 0:00:47.2]} 46... Qe6+ {[%clk 0:00:47.7]} 47.
f5 {[%clk 0:00:42.8]} 47... Qe2+ {[%clk 0:00:46.6]} 48. Kg5 {[%clk 0:00:41]}
48... Qxb2 {[%clk 0:00:46.2]} 49. f6 {[%clk 0:00:40]} 49... Qxa2 {[%clk
0:00:44.7]} 50. f7 {[%clk 0:00:39.6]} 50... Qd2+ {[%clk 0:00:44.6]} 51. Kg6
{[%clk 0:00:39.2]} 51... Qd3+ {[%clk 0:00:44]} 52. Kg7 {[%clk 0:00:38.5]} 52...
Qd7 {[%clk 0:00:43.2]} 53. Qc5+ {[%clk 0:00:35.4]} 53... b6 {[%clk 0:00:41.8]}
54. Qd5 {[%clk 0:00:35.2]} 54... Qg4+ {[%clk 0:00:38.5]} 55. Kf8 {[%clk
0:00:33.1]} 55... Qxg3 {[%clk 0:00:35.7]} 56. Ke8 {[%clk 0:00:30.8]} 56... Qe3+
{[%clk 0:00:34.8]} 57. Kd7 {[%clk 0:00:25.8]} 57... Qf4 {[%clk 0:00:32]} 58. Qe6
{[%clk 0:00:21.2]} 58... Qd4+ {[%clk 0:00:29.2]} 59. Ke8 {[%clk 0:00:20.4]}
59... Qc3 {[%clk 0:00:20.8]} 60. f8=Q {[%clk 0:00:20.3]} 60... Qxb3 {[%clk
0:00:20.8]} 61. Qd7 {[%clk 0:00:20.6]} 61... Kb7 {[%clk 0:00:18.7]} 62. Qfe7
{[%clk 0:00:20.2]} 62... a5 {[%clk 0:00:15.2]} 63. Qxc7+ {[%clk 0:00:20.2]}
63... Ka6 {[%clk 0:00:15.5]} 64. Qa7# {[%clk 0:00:19.3]} 1-0

[Event "Betsys MČR v online bleskovém šachu 2021"]
[Site "Chess.com"]
[Date "2021.04.17"]
[Round "6"]
[White "JIDEMONI"]
[Black "ffbp3q"]
[Result "0-1"]
[WhiteElo "1894"]
[BlackElo "2357"]
[TimeControl "180+1"]
[EndTime "9:58:30 PDT"]
[Termination "Uživatel ffbp3q zvítězil na čas"]

1. d4 {[%clk 0:03:00.9]} 1... Nf6 {[%clk 0:02:59.2]} 2. Nf3 {[%clk 0:02:59.5]}
2... e6 {[%clk 0:02:57.7]} 3. e3 {[%clk 0:02:58.5]} 3... b6 {[%clk 0:02:57]} 4.
Bd3 {[%clk 0:02:58.1]} 4... Bb7 {[%clk 0:02:57.1]} 5. O-O {[%clk 0:02:58.6]}
5... c5 {[%clk 0:02:54.2]} 6. c4 {[%clk 0:02:54.4]} 6... Be7 {[%clk 0:02:49.8]}
7. Nc3 {[%clk 0:02:53.3]} 7... d5 {[%clk 0:02:46.3]} 8. cxd5 {[%clk 0:02:51.3]}
8... exd5 {[%clk 0:02:46.4]} 9. b3 {[%clk 0:02:47.6]} 9... O-O {[%clk 0:02:42]}
10. Bb2 {[%clk 0:02:46.9]} 10... Nbd7 {[%clk 0:02:34.7]} 11. Qe2 {[%clk
0:02:43.5]} 11... a6 {[%clk 0:02:29.2]} 12. Ne5 {[%clk 0:02:40.1]} 12... Qc7
{[%clk 0:02:22.7]} 13. f4 {[%clk 0:02:38.2]} 13... Rfd8 {[%clk 0:02:14.5]} 14.
Rac1 {[%clk 0:02:37]} 14... Nf8 {[%clk 0:01:57.5]} 15. Bb1 {[%clk 0:02:23.4]}
15... Qd6 {[%clk 0:01:46.4]} 16. Nd1 {[%clk 0:02:07.6]} 16... Rac8 {[%clk
0:01:42.9]} 17. Nf2 {[%clk 0:02:06.9]} 17... Ne4 {[%clk 0:01:26.4]} 18. Nxe4
{[%clk 0:01:51.7]} 18... dxe4 {[%clk 0:01:25.9]} 19. dxc5 {[%clk 0:01:46.9]}
19... bxc5 {[%clk 0:01:07.1]} 20. Rfd1 {[%clk 0:01:41.4]} 20... Qe6 {[%clk
0:01:03.1]} 21. Qc4 {[%clk 0:01:32.6]} 21... Bd5 {[%clk 0:00:59.2]} 22. Qe2
{[%clk 0:01:20.5]} 22... f6 {[%clk 0:00:57.2]} 23. Nc4 {[%clk 0:01:14]} 23...
Bc6 {[%clk 0:00:44.2]} 24. Rxd8 {[%clk 0:01:04.7]} 24... Rxd8 {[%clk 0:00:43.8]}
25. Rd1 {[%clk 0:01:05.3]} 25... Bb5 {[%clk 0:00:37.4]} 26. Rxd8 {[%clk
0:01:03]} 26... Bxd8 {[%clk 0:00:36.6]} 27. Qd2 {[%clk 0:00:58.4]} 27... Bc7
{[%clk 0:00:31.3]} 28. Qc3 {[%clk 0:00:46.1]} 28... Qd5 {[%clk 0:00:20.6]} 29.
Bc2 {[%clk 0:00:41.2]} 29... Ne6 {[%clk 0:00:17.3]} 30. Nd2 {[%clk 0:00:29.3]}
30... Bd3 {[%clk 0:00:15.5]} 31. Bxd3 {[%clk 0:00:26.4]} 31... Qxd3 {[%clk
0:00:12.5]} 32. Qxd3 {[%clk 0:00:24.2]} 32... exd3 {[%clk 0:00:12.5]} 33. Kf2
{[%clk 0:00:23.2]} 33... f5 {[%clk 0:00:10.9]} 34. h3 {[%clk 0:00:19.7]} 34...
Kf7 {[%clk 0:00:10.3]} 35. g4 {[%clk 0:00:18.6]} 35... g6 {[%clk 0:00:10.3]} 36.
e4 {[%clk 0:00:17.2]} 36... fxe4 {[%clk 0:00:08.9]} 37. Nxe4 {[%clk 0:00:17.4]}
37... Bxf4 {[%clk 0:00:07.2]} 38. Bc3 {[%clk 0:00:12.2]} 38... Ke7 {[%clk
0:00:03.5]} 39. Bd2 {[%clk 0:00:12.2]} 39... Be5 {[%clk 0:00:03.1]} 40. Be3
{[%clk 0:00:07.8]} 40... Nd4 {[%clk 0:00:01.1]} 41. Bxd4 {[%clk 0:00:06.6]}
41... Bxd4+ {[%clk 0:00:01.1]} 42. Ke1 {[%clk 0:00:07]} 42... Ke6 {[%clk
0:00:01.7]} 43. Kd2 {[%clk 0:00:06.7]} 43... Ke5 {[%clk 0:00:02.4]} 44. Ng5
{[%clk 0:00:03.7]} 44... Kf4 {[%clk 0:00:03.3]} 45. Ne6+ {[%clk 0:00:03.4]}
45... Kg3 {[%clk 0:00:03.3]} 46. Nxd4 {[%clk 0:00:01.3]} 46... cxd4 {[%clk
0:00:03.6]} 47. Kxd3 {[%clk 0:00:02.2]} 47... Kxh3 {[%clk 0:00:03.9]} 48. b4
{[%clk 0:00:01.9]} 48... Kxg4 {[%clk 0:00:04.1]} 49. a4 {[%clk 0:00:02.4]} 49...
h5 {[%clk 0:00:04]} 50. b5 {[%clk 0:00:02.3]} 50... axb5 {[%clk 0:00:04.4]} 51.
axb5 {[%clk 0:00:01.9]} 51... h4 {[%clk 0:00:04.8]} 52. b6 {[%clk 0:00:02.8]}
52... h3 {[%clk 0:00:05.2]} 53. b7 {[%clk 0:00:03.7]} 53... h2 {[%clk
0:00:05.6]} 54. b8=Q {[%clk 0:00:03.5]} 54... h1=Q {[%clk 0:00:06.1]} 0-1